fUSD/lending_fUSD_20260613
["ID","MTS","AMOUNT","RATE_DAILY","PERIOD"]
[424954883,1781347117000,500.0,7.474e-05,2]
[424954878,1781347117000,500.0,7.474e-05,2]
[424954880,1781347117000,500.0,7.474e-05,2]
[424954885,1781347118000,102.6,7.474e-05,2]
[424954886,1781347162000,-397.4,7.474e-05,2]
[424954887,1781347216000,-1157.90484248,7.478e-05,2]
[424954888,1781347239000,-1345.29671232,7.478e-05,2]
[424954889,1781347263000,-1345.29671232,7.478e-05,2]
[424954891,1781347487000,-1000.0,6.968e-05,2]
[424954892,1781347541000,-500.0,7.048e-05,2]
[424954893,1781347595000,-500.0,7.048e-05,2]
[424954894,1781347647000,-500.0,7.047e-05,2]
[424954895,1781347701000,-500.0,7.047e-05,2]
[424954896,1781347716000,326.64894,9.746e-05,7]
[424954897,1781347755000,-500.0,7.047e-05,2]
[424954899,1781347764000,-317.2555552,7.047e-05,2]
[424954898,1781347764000,-500.0,7.047e-05,2]
[424954901,1781347808000,-182.7444448,7.047e-05,2]
[424954904,1781347809000,-500.0,7.047e-05,2]
[424954902,1781347809000,-500.0,7.047e-05,2]
[424954903,1781347809000,-500.0,7.047e-05,2]
[424954910,1781347810000,-500.0,7.047e-05,2]
[424954905,1781347810000,-500.0,7.047e-05,2]
[424954906,1781347810000,-500.0,7.047e-05,2]
[424954907,1781347810000,-500.0,7.047e-05,2]
[424954909,1781347810000,-398.00987676,7.047e-05,2]
[424954908,1781347810000,-101.99012324,7.047e-05,2]
[424954912,1781347810000,-500.0,7.047e-05,2]
[424954918,1781347810000,-500.0,7.047e-05,2]
[424954913,1781347810000,-500.0,7.047e-05,2]
[424954915,1781347810000,-203.98024648,7.047e-05,2]
[424954914,1781347810000,-500.0,7.047e-05,2]
[424954916,1781347810000,-296.01975352,7.047e-05,2]
[424954917,1781347810000,-500.0,7.047e-05,2]
[424954911,1781347810000,-500.0,7.047e-05,2]
[424954919,1781347810000,-192.88422396,7.047e-05,2]
[424954978,1781347833000,-271.00770342,7.047e-05,2]
[424954977,1781347833000,-416.56694041,7.047e-05,2]
[424954979,1781347833000,-3321.42,7.049e-05,2]
[424954981,1781347833000,-1210.7,7.096e-05,2]
[424954980,1781347833000,-35998.45,7.066e-05,2]
[424954985,1781347833000,-153.0,7.189e-05,2]
[424954983,1781347833000,-419.42402529,7.136e-05,2]
[424954976,1781347833000,-500.0,7.047e-05,2]
[424954986,1781347833000,-165.71,7.216e-05,2]
[424954984,1781347833000,-1852.42,7.142e-05,2]
[424954988,1781347833000,-24999.99,7.216e-05,2]
[424954982,1781347833000,-153.0,7.119e-05,2]
[424954975,1781347833000,-500.0,7.047e-05,2]
[424954971,1781347833000,-500.0,7.047e-05,2]
[424954972,1781347833000,-500.0,7.047e-05,2]
[424954973,1781347833000,-500.0,7.047e-05,2]
[424954970,1781347833000,-415.13253883,7.047e-05,2]
[424954969,1781347833000,-500.0,7.047e-05,2]
[424954966,1781347833000,-555.75441432,7.047e-05,2]
[424954968,1781347833000,-500.0,7.047e-05,2]
[424954967,1781347833000,-500.0,7.047e-05,2]
[424954964,1781347833000,-500.0,7.047e-05,2]
[424954965,1781347833000,-500.0,7.047e-05,2]
[424954962,1781347833000,-286.98,7.047e-05,2]
[424954963,1781347833000,-20.13577604,7.047e-05,2]
[424954987,1781347833000,-207248.35,7.216e-05,2]
[424954974,1781347833000,-216.40765473,7.047e-05,2]
[424954990,1781347833000,-5825.57,7.259e-05,2]
[424955008,1781347833000,-160.0,7.508e-05,2]
[424954992,1781347833000,-150.99,7.259e-05,2]
[424955019,1781347833000,-832.22856812,7.652e-05,2]
[424955017,1781347833000,-1446.65434223,7.652e-05,2]
[424955016,1781347833000,-1929.27379233,7.652e-05,2]
[424954989,1781347833000,-153.0,7.259e-05,2]
[424955014,1781347833000,-38644.14086073,7.652e-05,2]
[424955018,1781347833000,-353.8945,7.652e-05,2]
[424955012,1781347833000,-27168.72855186,7.652e-05,2]
[424955013,1781347833000,-9593.46789974,7.652e-05,2]
[424955010,1781347833000,-153.0,7.612e-05,2]
[424955011,1781347833000,-81292.39709086,7.652e-05,2]
[424955007,1781347833000,-387.02332496,7.477e-05,2]
[424955009,1781347833000,-153.0,7.541e-05,2]
[424955006,1781347833000,-153.0,7.471e-05,2]
[424955015,1781347833000,-487.718456,7.652e-05,2]
[424955001,1781347833000,-9999.99,7.259e-05,2]
[424955005,1781347833000,-230.44745054,7.411e-05,2]
[424954995,1781347833000,-521.85,7.259e-05,2]
[424954994,1781347833000,-1198.95,7.259e-05,2]
[424954996,1781347833000,-4999.99,7.259e-05,2]
[424954997,1781347833000,-299.99,7.259e-05,2]
[424954998,1781347833000,-18576.75,7.259e-05,2]
[424954993,1781347833000,-9999.99,7.259e-05,2]
[424954999,1781347833000,-3881.82,7.259e-05,2]
[424955002,1781347833000,-153.0,7.33e-05,2]
[424955004,1781347833000,-153.0,7.4e-05,2]
[424955003,1781347833000,-151666.0323,7.378e-05,2]
[424954991,1781347833000,-9805.13,7.259e-05,2]
[424955000,1781347833000,-999.99,7.259e-05,2]
[424955022,1781347838000,-364.32459817,7.652e-05,2]
[424955274,1781347840000,-160.0,7.753e-05,2]
[424955281,1781347840000,-2000.0,8e-05,2]
[424955290,1781347840000,-500.0,8.219e-05,2]
[424955285,1781347840000,-163.66750478,8.219e-05,2]
[424955277,1781347840000,-500.0,7.963e-05,2]
[424955264,1781347840000,-250.0,7.752e-05,2]
[424955271,1781347840000,-250.0,7.753e-05,2]
[424955283,1781347840000,-14219.007962,8.178e-05,2]
[424955268,1781347840000,-193.0,7.753e-05,2]
[424955239,1781347840000,-187374.7791167,7.664e-05,2]
[424955258,1781347840000,-216.029201,7.696e-05,2]
[424955255,1781347840000,-153.0,7.682e-05,2]
[424955242,1781347840000,-95719.7339968,7.664e-05,2]
[424955245,1781347840000,-3911.4760055,7.664e-05,2]
[424955251,1781347840000,-150.0,7.664e-05,2]
[424955249,1781347840000,-150.0,7.664e-05,2]
[424955231,1781347840000,-25825.48456986,7.652e-05,2]
[424955235,1781347840000,-151.0,7.661e-05,2]
[424955292,1781347840000,-500.0,8.219e-05,2]
[424955261,1781347840000,-250.0,7.752e-05,2]
[424955294,1781347840000,-500.0,8.219e-05,2]
[424955287,1781347840000,-500.0,8.219e-05,2]
[424955308,1781347840000,-500.0,8.219e-05,2]
[424955310,1781347840000,-216.59618123,8.219e-05,2]
[424955345,1781347840000,-1275.0,9.302e-05,2]
[424955348,1781347840000,-383.0,9.302e-05,2]
[424955343,1781347840000,-1359.0,9.302e-05,2]
[424955325,1781347840000,-624.19747981,8.493e-05,2]
[424955337,1781347840000,-177.45,9.277e-05,2]
[424955334,1781347840000,-6047.27000573,9.234e-05,2]
[424955317,1781347840000,-500.0,8.219e-05,2]
[424955328,1781347840000,-154.09,8.676e-05,2]
[424955339,1781347840000,-250.0,9.277e-05,2]
[424955330,1781347840000,-171.22,8.97e-05,2]
[424955306,1781347840000,-500.0,8.219e-05,2]
[424955341,1781347840000,-3557.0,9.302e-05,2]
[424955324,1781347840000,-41124.59244359,8.461e-05,2]
[424955296,1781347840000,-500.0,8.219e-05,2]
[424955303,1781347840000,-500.0,8.219e-05,2]
[424955301,1781347840000,-500.0,8.219e-05,2]
[424955299,1781347840000,-500.0,8.219e-05,2]
[424955315,1781347840000,-4530.03,8.219e-05,2]
[424955319,1781347840000,-7364.53,8.219e-05,2]
[424955332,1781347840000,-154.09,9.132e-05,2]
[424955321,1781347840000,-154.09,8.219e-05,2]
[424955313,1781347840000,-150.0,8.219e-05,2]
[424955437,1781347841000,-405.0,9.843e-05,2]
[424955424,1781347841000,-311.13,9.781e-05,2]
[424955426,1781347841000,-327.22,9.785e-05,2]
[424955428,1781347841000,-405.0,9.814e-05,2]
[424955435,1781347841000,-300.77,9.829e-05,2]
[424955444,1781347841000,-358.84,9.885e-05,2]
[424955442,1781347841000,-327.22,9.865e-05,2]
[424955440,1781347841000,-405.0,9.844e-05,2]
[424955430,1781347841000,-311.13,9.817e-05,2]
[424955460,1781347841000,-311.13,9.949e-05,2]
[424955433,1781347841000,-405.0,9.818e-05,2]
[424955449,1781347841000,-311.13,9.919e-05,2]
[424955453,1781347841000,-405.0,9.926e-05,2]
[424955451,1781347841000,-373.36,9.923e-05,2]
[424955417,1781347841000,-311.13,9.739e-05,2]
[424955455,1781347841000,-327.22,9.938e-05,2]
[424955468,1781347841000,-373.36,9.975e-05,2]
[424955462,1781347841000,-377.0,9.958e-05,2]
[424955464,1781347841000,-300.77,9.967e-05,2]
[424955446,1781347841000,-311.13,9.886e-05,2]
[424955413,1781347841000,-373.36,9.708e-05,2]
[424955406,1781347841000,-358.84,9.685e-05,2]
[424955411,1781347841000,-327.22,9.695e-05,2]
[424955356,1781347841000,-220.0,9.302e-05,2]
[424955354,1781347841000,-963.472,9.302e-05,2]
[424955358,1781347841000,-150.0,9.302e-05,2]
[424955361,1781347841000,-150.0,9.302e-05,2]
[424955350,1781347841000,-150.0,9.302e-05,2]
[424955352,1781347841000,-278.0,9.302e-05,2]
[424955365,1781347841000,-102.92536969,9.418e-05,2]
[424955363,1781347841000,-419.0,9.302e-05,2]
[424955392,1781347841000,-151.0,9.589e-05,2]
[424955395,1781347841000,-151.0,9.589e-05,2]
[424955397,1781347841000,-154.09,9.589e-05,2]
[424955385,1781347841000,-755.60037836,9.418e-05,2]
[424955399,1781347841000,-311.13,9.603e-05,2]
[424955390,1781347841000,-151.0,9.589e-05,2]
[424955388,1781347841000,-165.98,9.555e-05,2]
[424955401,1781347841000,-311.13,9.645e-05,2]
[424955404,1781347841000,-300.77,9.649e-05,2]
[424955408,1781347841000,-373.36,9.693e-05,2]
[424955472,1781347841000,-405.0,9.991e-05,2]
[424955419,1781347841000,-373.36,9.744e-05,2]
[424955422,1781347841000,-482.0,9.752e-05,2]
[424955415,1781347841000,-15958.84122228,9.734e-05,2]
[424955466,1781347841000,-266.0,9.969e-05,2]
[424955457,1781347841000,-373.36,9.938e-05,2]
[424955552,1781347841000,-177.45,0.00010437,2]
[424955527,1781347841000,-373.36,0.00010152,2]
[424955522,1781347841000,-311.13,0.00010136,2]
[424955533,1781347841000,-358.84,0.00010169,2]
[424955536,1781347841000,-300.77,0.00010185,2]
[424955540,1781347841000,-311.13,0.00010203,2]
[424955545,1781347841000,-644.05,0.00010337,2]
[424955538,1781347841000,-311.16,0.00010196,2]
[424955549,1781347841000,-644.07,0.00010342,2]
[424955556,1781347841000,-644.97,0.00010463,2]
[424955488,1781347841000,-311.13,0.00010034,2]
[424955554,1781347841000,-5840.46742188,0.00010444,2]
[424955561,1781347841000,-1158.53457283,0.000105,2]
[424955558,1781347841000,-315.292015,0.00010487,7]
[424955563,1781347841000,-1414.55778446,0.000105,2]
[424955547,1781347841000,-396.17,0.00010338,2]
[424955567,1781347841000,-63528.0,0.00010521,2]
[424955569,1781347841000,-831.05189394,0.00010534,2]
[424955565,1781347841000,-154.09,0.00010502,2]
[424955574,1781347841000,-151.0,0.00010544,2]
[424955576,1781347841000,-151.0,0.00010544,2]
[424955572,1781347841000,-151.0,0.00010544,2]
[424955529,1781347841000,-311.13,0.00010158,2]
[424955531,1781347841000,-358.86,0.00010164,2]
[424955470,1781347841000,-1553.571,9.991e-05,2]
[424955525,1781347841000,-184.00748318,0.00010137,2]
[424955493,1781347841000,-154.09,0.00010046,2]
[424955476,1781347841000,-165.3243623,0.0001,2]
[424955491,1781347841000,-358.84,0.00010039,2]
[424955474,1781347841000,-949.86,0.0001,2]
[424955480,1781347841000,-327.22,0.00010004,2]
[424955478,1781347841000,-834.28838577,0.0001,2]
[424955484,1781347841000,-801.01783456,0.00010012,2]
[424955495,1781347841000,-152.0,0.00010046,2]
[424955482,1781347841000,-311.13,0.00010006,2]
[424955499,1781347841000,-151.0,0.00010046,2]
[424955505,1781347841000,-327.22,0.00010066,2]
[424955503,1781347841000,-311.13,0.0001006,2]
[424955497,1781347841000,-152.0,0.00010046,2]
[424955501,1781347841000,-151.0,0.00010046,2]
[424955510,1781347841000,-373.37,0.00010094,2]
[424955508,1781347841000,-300.77,0.00010083,2]
[424955516,1781347841000,-373.37,0.00010111,2]
[424955514,1781347841000,-311.13,0.0001011,2]
[424955512,1781347841000,-373.36,0.000101,2]
[424955518,1781347841000,-373.36,0.00010115,2]
[424955520,1781347841000,-311.17,0.00010131,2]
[424955486,1781347841000,-498.0,0.00010031,2]
[424955542,1781347841000,-746.72,0.00010206,2]
[424955580,1781347842000,-832379.12422371,0.00010544,2]
[424955578,1781347842000,-151.0,0.00010544,2]
[424955607,1781347843000,-134769.32086563,0.00010544,2]
[424955605,1781347843000,-327.22,0.00010065,2]
[424955604,1781347843000,-327.22,9.784e-05,2]
[424955606,1781347843000,-2000.0,0.00010151,2]
[424955603,1781347843000,-2000.0,9.023e-05,2]
[424955621,1781347844000,-464.05387956,0.00010544,2]
[424955620,1781347844000,-786.29405447,0.00010544,2]
[424955619,1781347844000,-7353.86685819,0.00010544,2]
[424955623,1781347846000,-3644.0,9.302e-05,2]
[424955624,1781347846000,-230.25567132,0.0001,2]
[424955626,1781347846000,-25637.45822212,0.00010544,2]
[424955625,1781347846000,-202.70161094,0.00010544,2]
[424955627,1781347847000,-24510.31383365,0.00010544,2]
[424955631,1781347856000,215.63119664,7.046e-05,2]
[424955632,1781347983000,-150.0,6.766e-05,2]
[424955633,1781348036000,-150.0,6.766e-05,2]
[424955636,1781348090000,-168.41152157,6.766e-05,2]
[424955639,1781348143000,-244.48244792,6.766e-05,2]
[424955643,1781348197000,-150.0,6.866e-05,2]
[424955649,1781348250000,-150.0,6.963e-05,2]
[424955653,1781348303000,-211.69538781,6.963e-05,2]
[424955654,1781348357000,-1236.81,6.966e-05,2]
[424955655,1781348381000,-1236.81,6.966e-05,2]
[424955658,1781348405000,-1236.81,6.966e-05,2]
[424955687,1781348591000,-621.06284266,6.963e-05,2]
[424955713,1781348592000,-500.0,6.963e-05,2]
[424955715,1781348592000,-500.0,6.963e-05,2]
[424955689,1781348592000,-517.69009337,6.963e-05,2]
[424955688,1781348592000,-256.34218377,6.963e-05,2]
[424955691,1781348592000,-500.0,6.963e-05,2]
[424955690,1781348592000,-500.0,6.963e-05,2]
[424955692,1781348592000,-500.0,6.963e-05,2]
[424955694,1781348592000,-500.0,6.963e-05,2]
[424955695,1781348592000,-500.0,6.963e-05,2]
[424955696,1781348592000,-500.0,6.963e-05,2]
[424955697,1781348592000,-500.0,6.963e-05,2]
[424955698,1781348592000,-500.0,6.963e-05,2]
[424955699,1781348592000,-289.03957581,6.963e-05,2]
[424955700,1781348592000,-500.0,6.963e-05,2]
[424955693,1781348592000,-500.0,6.963e-05,2]
[424955702,1781348592000,-400.0,6.963e-05,2]
[424955701,1781348592000,-500.0,6.963e-05,2]
[424955714,1781348592000,-500.0,6.963e-05,2]
[424955711,1781348592000,-500.0,6.963e-05,2]
[424955709,1781348592000,-36.92814705,6.963e-05,2]
[424955708,1781348592000,-500.0,6.963e-05,2]
[424955710,1781348592000,-463.07185295,6.963e-05,2]
[424955707,1781348592000,-500.0,6.963e-05,2]
[424955705,1781348592000,-500.0,6.963e-05,2]
[424955704,1781348592000,-500.0,6.963e-05,2]
[424955703,1781348592000,-500.0,6.963e-05,2]
[424955706,1781348592000,-500.0,6.963e-05,2]
[424955712,1781348592000,-500.0,6.963e-05,2]
[424955730,1781348593000,-36.92814705,6.963e-05,2]
[424955723,1781348593000,-500.0,6.963e-05,2]
[424955729,1781348593000,-500.0,6.963e-05,2]
[424955728,1781348593000,-500.0,6.963e-05,2]
[424955727,1781348593000,-500.0,6.963e-05,2]
[424955725,1781348593000,-500.0,6.963e-05,2]
[424955726,1781348593000,-500.0,6.963e-05,2]
[424955718,1781348593000,-500.0,6.963e-05,2]
[424955722,1781348593000,-500.0,6.963e-05,2]
[424955721,1781348593000,-500.0,6.963e-05,2]
[424955719,1781348593000,-500.0,6.963e-05,2]
[424955720,1781348593000,-500.0,6.963e-05,2]
[424955717,1781348593000,-500.0,6.963e-05,2]
[424955716,1781348593000,-500.0,6.963e-05,2]
[424955731,1781348593000,-463.07185295,6.963e-05,2]
[424955724,1781348593000,-500.0,6.963e-05,2]
[424955733,1781348593000,-500.0,6.963e-05,2]
[424955743,1781348593000,-500.0,6.963e-05,2]
[424955734,1781348593000,-500.0,6.963e-05,2]
[424955751,1781348593000,-90.94809444,6.963e-05,2]
[424955750,1781348593000,-409.05190556,6.963e-05,2]
[424955749,1781348593000,-500.0,6.963e-05,2]
[424955747,1781348593000,-500.0,6.963e-05,2]
[424955732,1781348593000,-500.0,6.963e-05,2]
[424955746,1781348593000,-500.0,6.963e-05,2]
[424955744,1781348593000,-500.0,6.963e-05,2]
[424955748,1781348593000,-500.0,6.963e-05,2]
[424955745,1781348593000,-500.0,6.963e-05,2]
[424955741,1781348593000,-500.0,6.963e-05,2]
[424955739,1781348593000,-500.0,6.963e-05,2]
[424955740,1781348593000,-500.0,6.963e-05,2]
[424955738,1781348593000,-500.0,6.963e-05,2]
[424955737,1781348593000,-500.0,6.963e-05,2]
[424955736,1781348593000,-627.87624149,6.963e-05,2]
[424955735,1781348593000,-500.0,6.963e-05,2]
[424955742,1781348593000,-500.0,6.963e-05,2]
[424955753,1781348594000,-500.0,6.963e-05,2]
[424955754,1781348594000,-500.0,6.963e-05,2]
[424955755,1781348594000,-8409.05190556,6.966e-05,2]
[424955752,1781348594000,-500.0,6.963e-05,2]
[424955757,1781348594000,-10000.0,6.966e-05,2]
[424955758,1781348594000,-150.0,6.962e-05,2]
[424955756,1781348594000,-10000.0,6.966e-05,2]
[424955759,1781348594000,-9850.0,6.966e-05,2]
[424955760,1781348595000,-10000.0,6.966e-05,2]
[424955768,1781348597000,-500.0,6.963e-05,2]
[424955767,1781348597000,-500.0,6.963e-05,2]
[424955765,1781348597000,-500.0,6.963e-05,2]
[424955766,1781348597000,-500.0,6.963e-05,2]
[424955764,1781348597000,-500.0,6.963e-05,2]
[424955763,1781348597000,-500.0,6.963e-05,2]
[424955762,1781348597000,-10000.0,6.966e-05,2]
[424955761,1781348597000,-10000.0,6.966e-05,2]
[424955769,1781348597000,-150.0,6.963e-05,2]
[424955770,1781348598000,-4037.0,6.966e-05,2]
[424955771,1781348645000,-1488.74,6.966e-05,2]
[424955772,1781348668000,-2905.72,6.966e-05,2]
[424955773,1781348692000,-2905.72,6.966e-05,2]
[424955774,1781348714000,-1488.74,6.966e-05,2]
[424955775,1781348740000,-1488.74,6.966e-05,2]
[424955776,1781348763000,-2005.9555727,6.966e-05,2]
[424955777,1781348786000,-596.67432195,6.965e-05,2]
[424955779,1781348800000,-538.65505768,6.965e-05,2]
[424955778,1781348800000,-150.0,6.757e-05,2]
[424955780,1781348800000,-538.65505768,6.965e-05,2]
[424955781,1781348800000,-538.65505768,6.965e-05,2]
[424955784,1781348800000,-538.65505768,6.965e-05,2]
[424955782,1781348800000,-538.65505768,6.965e-05,2]
[424955785,1781348800000,-538.65505768,6.965e-05,2]
[424955786,1781348800000,-538.65505768,6.965e-05,2]
[424955787,1781348800000,-538.65505768,6.965e-05,2]
[424955783,1781348800000,-538.65505768,6.965e-05,2]
[424955796,1781348801000,-538.65505768,6.965e-05,2]
[424955797,1781348801000,-538.65505768,6.965e-05,2]
[424955794,1781348801000,-538.65505768,6.965e-05,2]
[424955795,1781348801000,-538.65505768,6.965e-05,2]
[424955793,1781348801000,-538.65505768,6.965e-05,2]
[424955790,1781348801000,-538.65505768,6.965e-05,2]
[424955791,1781348801000,-538.65505768,6.965e-05,2]
[424955789,1781348801000,-538.65505768,6.965e-05,2]
[424955788,1781348801000,-538.65505768,6.965e-05,2]
[424955798,1781348801000,-538.65505768,6.965e-05,2]
[424955792,1781348801000,-538.65505768,6.965e-05,2]
[424955799,1781348801000,-538.65505768,6.965e-05,2]
[424955804,1781348801000,-538.65505768,6.965e-05,2]
[424955802,1781348801000,-538.65505768,6.965e-05,2]
[424955800,1781348801000,-538.65505768,6.965e-05,2]
[424955812,1781348801000,-538.65505768,6.965e-05,2]
[424955811,1781348801000,-538.65505768,6.965e-05,2]
[424955810,1781348801000,-538.65505768,6.965e-05,2]
[424955809,1781348801000,-538.65505768,6.965e-05,2]
[424955813,1781348801000,-538.65505768,6.965e-05,2]
[424955807,1781348801000,-538.65505768,6.965e-05,2]
[424955806,1781348801000,-538.65505768,6.965e-05,2]
[424955805,1781348801000,-538.65505768,6.965e-05,2]
[424955803,1781348801000,-538.65505768,6.965e-05,2]
[424955801,1781348801000,-538.65505768,6.965e-05,2]
[424955808,1781348801000,-538.65505768,6.965e-05,2]
[424955826,1781348802000,-528.86132936,6.965e-05,2]
[424955830,1781348802000,-528.86132936,6.965e-05,2]
[424955828,1781348802000,-528.86132936,6.965e-05,2]
[424955829,1781348802000,-528.86132936,6.965e-05,2]
[424955832,1781348802000,-528.86132936,6.965e-05,2]
[424955827,1781348802000,-528.86132936,6.965e-05,2]
[424955825,1781348802000,-528.86132936,6.965e-05,2]
[424955824,1781348802000,-528.86132936,6.965e-05,2]
[424955818,1781348802000,-538.65505768,6.965e-05,2]
[424955821,1781348802000,-538.65505768,6.965e-05,2]
[424955822,1781348802000,-538.65505768,6.965e-05,2]
[424955820,1781348802000,-538.65505768,6.965e-05,2]
[424955819,1781348802000,-538.65505768,6.965e-05,2]
[424955816,1781348802000,-538.65505768,6.965e-05,2]
[424955817,1781348802000,-538.65505768,6.965e-05,2]
[424955815,1781348802000,-538.65505768,6.965e-05,2]
[424955814,1781348802000,-538.65505768,6.965e-05,2]
[424955823,1781348802000,-179.43952864,6.965e-05,2]
[424955831,1781348802000,-528.86132936,6.965e-05,2]
[424955837,1781348802000,-528.86132936,6.965e-05,2]
[424955834,1781348802000,-528.86132936,6.965e-05,2]
[424955833,1781348802000,-528.86132936,6.965e-05,2]
[424955852,1781348802000,-528.86132936,6.965e-05,2]
[424955848,1781348802000,-528.86132936,6.965e-05,2]
[424955849,1781348802000,-528.86132936,6.965e-05,2]
[424955850,1781348802000,-528.86132936,6.965e-05,2]
[424955847,1781348802000,-528.86132936,6.965e-05,2]
[424955844,1781348802000,-528.86132936,6.965e-05,2]
[424955843,1781348802000,-528.86132936,6.965e-05,2]
[424955851,1781348802000,-528.86132936,6.965e-05,2]
[424955846,1781348802000,-528.86132936,6.965e-05,2]
[424955840,1781348802000,-528.86132936,6.965e-05,2]
[424955839,1781348802000,-528.86132936,6.965e-05,2]
[424955841,1781348802000,-528.86132936,6.965e-05,2]
[424955842,1781348802000,-528.86132936,6.965e-05,2]
[424955838,1781348802000,-528.86132936,6.965e-05,2]
[424955835,1781348802000,-528.86132936,6.965e-05,2]
[424955836,1781348802000,-528.86132936,6.965e-05,2]
[424955845,1781348802000,-528.86132936,6.965e-05,2]
[424955854,1781348803000,-528.86132936,6.965e-05,2]
[424955853,1781348803000,-528.86132936,6.965e-05,2]
[424955855,1781348803000,-528.86132936,6.965e-05,2]
[424955858,1781348803000,-500.0,6.965e-05,2]
[424955857,1781348803000,-500.0,6.965e-05,2]
[424955859,1781348803000,-500.0,6.965e-05,2]
[424955861,1781348803000,-6940.16900047,6.966e-05,2]
[424955860,1781348803000,-443.54119235,6.965e-05,2]
[424955856,1781348803000,-162.4652011,6.965e-05,2]
[424955865,1781348804000,-500.0,6.965e-05,2]
[424955862,1781348804000,-500.0,6.965e-05,2]
[424955863,1781348804000,-500.0,6.965e-05,2]
[424955864,1781348804000,-500.0,6.965e-05,2]
[424955866,1781348804000,-500.0,6.965e-05,2]
[424955867,1781348804000,-500.0,6.965e-05,2]
[424955871,1781348804000,-500.0,6.965e-05,2]
[424955869,1781348804000,-500.0,6.965e-05,2]
[424955875,1781348804000,-43706.55018056,6.966e-05,2]
[424955870,1781348804000,-500.0,6.965e-05,2]
[424955872,1781348804000,-500.0,6.965e-05,2]
[424955874,1781348804000,-500.0,6.965e-05,2]
[424955873,1781348804000,-500.0,6.965e-05,2]
[424955868,1781348804000,-293.44981944,6.965e-05,2]
[424955876,1781348806000,-50000.0,6.966e-05,2]
[424955877,1781348839000,-2075.76036953,6.966e-05,2]
[424955882,1781348840000,-216.029201,6.992e-05,2]
[424955883,1781348840000,-160.0,6.994e-05,2]
[424955880,1781348840000,-494.81859519,6.966e-05,2]
[424955881,1781348840000,-150.0,6.969e-05,2]
[424955879,1781348840000,-8096.85306751,6.966e-05,2]
[424955878,1781348840000,-1050.81980367,6.966e-05,2]
[424955884,1781348862000,-250.0,7.663e-05,2]
[424955886,1781348862000,40666.2699353,6.866e-05,2]
[424955885,1781348862000,216.029201,6.994e-05,2]
[424955887,1781348865000,-50000.0,6.866e-05,2]
[424955888,1781348866000,-50000.0,6.866e-05,2]
[424955889,1781348867000,-50000.0,6.866e-05,2]
[424955890,1781348947000,-150.0,6.864e-05,2]
[424955891,1781348947000,-417.67202536,6.865e-05,2]
[424955892,1781348947000,-323.04630176,6.865e-05,2]
[424955893,1781348947000,-500.0,6.865e-05,2]
[424955894,1781348947000,-500.0,6.865e-05,2]
[424955895,1781348947000,-441.69652762,6.865e-05,2]
[424955896,1781348947000,-500.0,6.865e-05,2]
[424955899,1781348947000,-500.0,6.865e-05,2]
[424955898,1781348947000,-500.0,6.865e-05,2]
[424955897,1781348947000,-500.0,6.865e-05,2]
[424955901,1781348947000,-500.0,6.865e-05,2]
[424955909,1781348947000,-21655.07639927,6.866e-05,2]
[424955908,1781348947000,-150.0,6.866e-05,2]
[424955907,1781348947000,-230.80436875,6.865e-05,2]
[424955906,1781348947000,-500.0,6.865e-05,2]
[424955900,1781348947000,-500.0,6.865e-05,2]
[424955904,1781348947000,-252.90378414,6.865e-05,2]
[424955903,1781348947000,-500.0,6.865e-05,2]
[424955902,1781348947000,-500.0,6.865e-05,2]
[424955905,1781348947000,-500.0,6.865e-05,2]
[424955910,1781348960000,-369.49041494,6.866e-05,2]
[424955911,1781348961000,-34423.40195049,6.866e-05,2]
[424955912,1781348961000,-26040.59804951,6.913e-05,2]
[424955914,1781348967000,-1247.31189088,6.913e-05,2]
[424955913,1781348967000,-841.29406054,6.913e-05,2]
[424955915,1781348973000,-790.73644056,6.913e-05,2]
[424955916,1781348991000,-10000.0,6.913e-05,2]
[424955917,1781349009000,-3161.21562327,6.865e-05,2]
[424955919,1781349009000,-2105.54169861,6.865e-05,2]
[424955918,1781349009000,-3161.21562327,6.865e-05,2]
[424956071,1781349043000,-1971.58,6.865e-05,2]
[424956086,1781349065000,-1110.68474208,6.865e-05,2]
[424956087,1781349065000,-1049.53799999,6.865e-05,2]
[424956085,1781349065000,-889.875551,6.865e-05,2]